bitfinex/quotes_SOLUSD_20250903
["timestamp","ask_amount","ask_price","bid_price","bid_amount"]
[1756908295631,0.06,212.42,212.39,7.90498646]
[1756908295839,0.06,212.42,212.38,56.45989452]
[1756908295840,0.06,212.42,212.4,7.90498646]
[1756908296037,0.06,212.42,212.41,39.28]
[1756908296218,0.06,212.42,212.41,43.98787627]
[1756908297215,0.06,212.42,212.41,44.68787627]
[1756908297437,0.06,212.42,212.41,51.89286273]
[1756908297636,0.06,212.42,212.41,4.70787627]
[1756908297816,0.06,212.42,212.41,43.96787627]
[1756908298512,0.06,212.42,212.41,52.57286273]
[1756908298919,0.72,212.53,212.43,26.0]
[1756908299124,8.62498646,212.53,212.47,7.90498646]
[1756908299439,8.62498646,212.53,212.44,39.96]
[1756908299440,7.90498646,212.52,212.48,39.26]
[1756908299614,7.90498646,212.49,212.43,26.0]
[1756908299936,7.90498646,212.51,212.45,7.90498646]
[1756908300120,7.90498646,212.51,212.44,39.96]
[1756908300121,7.90498646,212.52,212.44,0.7]
[1756908300437,7.90498646,212.46,212.43,39.26]
[1756908300736,7.90498646,212.47,212.43,39.26]
[1756908300942,0.72,212.51,212.43,47.16498646]
[1756908301124,0.72,212.49,212.45,7.90498646]
[1756908301325,7.90498646,212.51,212.46,39.26]
[1756908301523,0.72,212.5,212.46,39.26]
[1756908301723,7.90498646,212.51,212.46,39.26]
[1756908302041,7.90498646,212.49,212.43,26.0]
[1756908302219,7.90498646,212.47,212.44,4.70717615]
[1756908302419,8.62498646,212.47,212.45,39.26]
[1756908302740,26.0,212.52,212.45,39.26]
[1756908302924,7.90498646,212.46,212.41,4.70787627]
[1756908303132,7.90498646,212.43,212.42,39.26]
[1756908303338,8.62498646,212.43,212.38,4.70854129]
[1756908303516,16.46981318,212.51,212.35,4.70920649]
[1756908303517,7.90498646,212.41,212.35,4.70920649]
[1756908303719,7.90498646,212.39,212.35,4.70920649]
[1756908303940,7.90498646,212.38,212.36,39.26]
[1756908304222,8.62498646,212.37,212.32,4.73985862]
[1756908304447,7.90498646,212.34,212.32,0.03]
[1756908304737,0.72,212.36,212.32,0.03]
[1756908304942,8.62498646,212.33,212.32,0.03]
[1756908305442,7.90498646,212.34,212.32,0.03]
[1756908305750,0.72,212.37,212.32,0.03]
[1756908305940,7.90498646,212.33,212.32,0.03]
[1756908306319,8.62498646,212.33,212.32,0.03]
[1756908306731,7.90498646,212.34,212.32,0.03]
[1756908306931,7.90498646,212.33,212.32,0.03]
[1756908307225,0.72,212.35,212.32,0.03]
[1756908307528,0.72,212.39,212.32,0.03]
[1756908307730,7.90498646,212.36,212.32,0.03]
[1756908308227,7.90498646,212.34,212.32,0.03]
[1756908308734,0.72,212.35,212.32,0.03]
[1756908308943,7.90498646,212.35,212.32,0.03]
[1756908309132,8.62498646,212.34,212.32,0.03]
[1756908309330,7.90498646,212.33,212.32,0.03]
[1756908309741,8.62498646,212.33,212.32,0.03]
[1756908310333,13.33463653,212.33,212.32,0.03]
[1756908310723,0.72,212.33,212.32,0.03]
[1756908310951,8.62498646,212.33,212.32,0.03]
[1756908311444,26.0,212.35,212.32,0.03]
[1756908311445,7.90498646,212.35,212.32,0.03]
[1756908312049,11.76699568,212.46,212.32,0.03]
[1756908312050,7.90498646,212.37,212.32,0.03]
[1756908312248,8.56498646,212.37,212.32,0.03]
[1756908312451,13.59559401,212.42,212.32,0.03]
[1756908312452,7.90498646,212.33,212.32,0.03]
[1756908312952,7.90498646,212.34,212.32,0.03]
[1756908313146,8.56498646,212.35,212.32,0.03]
[1756908313340,8.56498646,212.34,212.32,0.03]
[1756908313723,8.56498646,212.33,212.32,0.03]
[1756908314848,0.66,212.36,212.32,0.03]
[1756908315035,0.66,212.33,212.32,0.03]
[1756908315447,8.56498646,212.33,212.32,0.03]
[1756908315642,7.90498646,212.35,212.32,0.03]
[1756908315837,7.90498646,212.34,212.32,0.03]
[1756908316023,8.56498646,212.34,212.32,0.03]
[1756908317345,26.0,212.38,212.32,7.93498646]
[1756908317346,7.90498646,212.38,212.32,7.93498646]
[1756908317663,7.90498646,212.4,212.33,47.14498646]
[1756908317829,13.65559401,212.45,212.32,0.03]
[1756908317830,7.90498646,212.35,212.32,0.03]
[1756908318150,7.90498646,212.34,212.32,0.03]
[1756908318342,8.56498646,212.34,212.32,0.03]
[1756908318566,26.66,212.4,212.32,8.60498646]
[1756908318731,7.90498646,212.39,212.33,7.90498646]
[1756908318934,7.90498646,212.39,212.32,8.60498646]
[1756908319257,7.90498646,212.39,212.33,47.14498646]
[1756908319430,8.56498646,212.4,212.34,7.90498646]
[1756908319761,26.0,212.44,212.37,7.90498646]
[1756908319762,7.90498646,212.44,212.37,7.90498646]
[1756908319934,7.90498646,212.44,212.38,7.90498646]
[1756908320136,7.90498646,212.43,212.36,7.90498646]
[1756908320558,7.90498646,212.42,212.35,0.67]
[1756908320867,7.90498646,212.4,212.35,39.24]
[1756908321035,8.56498646,212.42,212.35,47.14498646]
[1756908321444,7.90498646,212.44,212.38,7.90498646]
[1756908321638,7.90498646,212.44,212.37,7.90498646]
[1756908321853,0.66,212.43,212.34,39.22]
[1756908322033,7.90498646,212.37,212.33,4.70965007]
[1756908322232,0.66,212.42,212.32,0.03]
[1756908322233,0.66,212.36,212.32,0.03]
[1756908322545,7.90498646,212.33,212.32,0.03]
[1756908322863,8.56498646,212.36,212.32,0.03]
[1756908323075,0.66,212.39,212.32,0.7]
[1756908323286,7.90498646,212.37,212.32,0.7]
[1756908323594,7.90498646,212.38,212.32,0.7]
[1756908323744,7.90498646,212.39,212.33,0.67]
[1756908324140,7.90498646,212.38,212.32,7.93498646]
[1756908324558,7.90498646,212.38,212.33,4.70965007]
[1756908324846,7.90498646,212.37,212.33,4.70965007]
[1756908325163,7.90498646,212.38,212.33,4.70965007]
[1756908325475,7.90498646,212.41,212.35,7.90498646]
[1756908325662,0.06,212.45,212.38,7.90498646]
[1756908325859,0.06,212.45,212.39,7.90498646]
[1756908326062,0.06,212.45,212.41,7.90498646]
[1756908326264,0.06,212.45,212.42,7.90498646]
[1756908326767,0.72,212.45,212.39,8.57498646]
[1756908326979,8.62498646,212.45,212.39,47.12498646]
[1756908327151,8.62498646,212.45,212.39,51.83320622]
[1756908327468,7.90498646,212.42,212.31,13.62559401]
[1756908327670,7.90498646,212.41,212.36,7.90498646]
[1756908327854,7.90498646,212.42,212.36,7.90498646]
[1756908328263,0.06,212.45,212.39,7.90498646]
[1756908328568,0.06,212.45,212.41,7.90498646]
[1756908328781,0.06,212.45,212.41,12.61283705]
[1756908329093,0.06,212.45,212.4,7.90498646]
[1756908329260,0.06,212.45,212.41,7.90498646]
[1756908329462,0.06,212.45,212.4,7.90498646]
[1756908329957,0.06,212.45,212.41,8.57498646]
[1756908330358,0.06,212.45,212.41,0.67]
[1756908330565,0.06,212.45,212.41,8.57498646]
[1756908330874,0.06,212.45,212.44,7.90498646]
[1756908332478,0.06,212.45,212.42,5.37765464]
[1756908332683,0.06,212.45,212.44,7.90498646]
[1756908332857,0.06,212.45,212.43,7.90498646]
[1756908333058,0.06,212.45,212.42,7.90498646]
[1756908333257,0.06,212.45,212.41,123.60782652]
[1756908333475,0.06,212.45,212.43,7.90498646]
[1756908335072,0.06,212.45,212.43,12.61240379]
[1756908335280,0.06,212.45,212.44,7.90498646]
[1756908335658,0.06,212.45,212.41,119.57]
[1756908335859,0.06,212.45,212.43,7.90498646]
[1756908336473,0.72,212.45,212.41,79.7]
[1756908336677,0.66,212.44,212.41,79.7]
[1756908336992,8.56498646,212.43,212.38,39.18]
[1756908337157,8.56498646,212.43,212.35,0.67]
[1756908337158,0.66,212.42,212.35,0.67]
[1756908337355,0.66,212.42,212.32,0.03]
[1756908337356,26.0,212.4,212.32,0.03]
[1756908337582,7.90498646,212.34,212.32,0.03]
[1756908338082,0.66,212.33,212.32,0.03]
[1756908339564,12.36220901,212.33,212.32,0.03]
[1756908339788,17.07185908,212.33,212.32,0.03]
[1756908340564,12.36220901,212.33,212.32,0.03]
[1756908340764,11.70220901,212.34,212.32,0.03]
[1756908341189,11.70220901,212.35,212.32,0.03]
[1756908341467,12.36220901,212.36,212.32,0.03]
[1756908341884,17.07120238,212.36,212.32,0.03]
[1756908342383,0.67,212.36,212.32,11.73220901]
[1756908342688,12.37220901,212.36,212.32,0.03]
[1756908343080,11.70220901,212.38,212.32,16.4420809]
[1756908343285,37.70220901,212.39,212.33,12.36220901]
[1756908343584,37.70220901,212.39,212.33,11.70220901]
[1756908343766,12.37220901,212.38,212.32,0.03]
[1756908343966,11.70220901,212.37,212.32,0.03]
[1756908344389,31.37837561,212.39,212.32,11.73220901]
[1756908344596,11.70220901,212.38,212.32,11.73220901]
[1756908344897,0.67,212.42,212.33,0.66]
[1756908345067,0.07960034,212.36,212.32,0.03]
[1756908345262,0.07960034,212.36,212.32,11.73220901]
[1756908345469,0.07960034,212.36,212.35,11.70220901]
[1756908346079,0.07960034,212.36,212.35,12.36220901]
[1756908346886,0.07960034,212.36,212.35,11.70220901]
[1756908347102,0.07960034,212.36,212.33,11.70220901]
[1756908347268,0.07960034,212.36,212.32,0.03]
[1756908347468,0.07960034,212.36,212.33,12.36220901]
[1756908347675,0.07960034,212.36,212.33,11.70220901]
[1756908347975,0.07960034,212.36,212.32,0.03]
[1756908347976,0.07960034,212.36,212.32,11.73220901]
[1756908348169,0.07960034,212.36,212.32,0.03]
[1756908348170,11.70220901,212.33,212.32,0.03]
[1756908348368,12.37220901,212.33,212.32,0.03]
[1756908348589,0.67,212.33,212.32,0.03]
[1756908348797,12.37220901,212.33,212.32,0.03]
[1756908349293,17.08185908,212.33,212.32,0.03]
[1756908349971,12.37220901,212.33,212.32,0.03]
[1756908350192,11.70220901,212.33,212.32,0.03]
[1756908350379,11.70220901,212.35,212.32,0.03]
[1756908350696,0.07960034,212.36,212.32,12.39220901]
[1756908350985,0.07960034,212.36,212.32,0.69]
[1756908351188,0.07960034,212.36,212.32,0.03]
[1756908351374,0.74960034,212.36,212.32,0.03]
[1756908351568,17.16079451,212.36,212.32,0.03]
[1756908351779,12.45180935,212.36,212.32,0.03]
[1756908352187,11.78180935,212.36,212.32,0.03]
[1756908352370,0.07960034,212.36,212.33,0.66]
[1756908352575,0.07960034,212.36,212.34,0.66]
[1756908352875,0.07960034,212.36,212.33,0.66]
[1756908353393,12.37220901,212.35,212.32,0.03]
[1756908353573,11.70220901,212.35,212.32,0.03]
[1756908353891,12.37220901,212.34,212.32,0.03]
[1756908354111,11.70220901,212.33,212.32,0.03]
[1756908354286,12.37220901,212.33,212.32,0.03]
[1756908354484,0.67,212.33,212.32,0.03]
[1756908354688,11.70220901,212.33,212.32,0.03]
[1756908356086,17.08185908,212.33,212.32,0.03]
[1756908356699,30.67745309,212.33,212.32,0.03]
[1756908357005,13.59559401,212.32,212.3,0.03]
[1756908357186,51.29780302,212.31,212.3,0.03]
[1756908357393,56.67789675,212.31,212.3,0.03]
[1756908358882,69.83789675,212.31,212.3,0.03]
[1756908359113,25.29780302,212.3,212.29,1e-08]
[1756908359401,30.00811861,212.3,212.29,1e-08]
[1756908359601,69.83811861,212.3,212.29,1e-08]
[1756908359991,30.67811861,212.3,212.29,1e-08]
[1756908360195,0.67,212.3,212.29,1e-08]
[1756908360400,51.96780302,212.3,212.29,1e-08]
[1756908360804,13.59559401,212.25,212.13,0.76]
[1756908361005,11.70220901,212.18,212.13,0.76]
[1756908361189,11.70220901,212.17,212.14,0.66]
[1756908361389,11.70220901,212.17,212.14,5.37380298]
[1756908361588,11.70220901,212.17,212.15,0.66]
[1756908361809,11.70220901,212.16,212.13,0.1]
[1756908362010,11.70220901,212.16,212.13,0.76]
[1756908362512,0.67,212.25,212.14,12.36220901]
[1756908362708,11.70220901,212.2,212.15,0.66]
[1756908362912,11.70220901,212.2,212.13,4.81407929]
[1756908363113,39.81,212.25,212.13,4.81405698]
[1756908363114,11.70220901,212.16,212.13,4.81405698]
[1756908363295,11.70220901,212.17,212.14,0.66]
[1756908363615,11.70220901,212.2,212.15,4.713646]
[1756908363812,11.70220901,212.2,212.16,0.66]
[1756908364012,11.70220901,212.2,212.15,4.713646]
[1756908364215,13.59559401,212.27,212.18,11.70220901]
[1756908364216,39.14,212.27,212.18,11.70220901]
[1756908364427,0.67,212.28,212.21,11.70220901]
[1756908364721,65.81,212.31,212.19,0.66]
[1756908364893,0.67,212.31,212.23,11.70220901]
[1756908365097,0.67,212.34,212.24,12.36220901]
[1756908365427,0.67,212.34,212.19,13.59559401]
[1756908365428,11.70220901,212.34,212.29,4.71053747]
[1756908365592,11.78180935,212.36,212.3,12.36220901]
[1756908365792,11.70220901,212.35,212.34,11.70220901]
[1756908366010,0.07960034,212.36,212.34,0.66]
[1756908366193,0.07960034,212.36,212.35,0.66]
[1756908366630,0.07960034,212.36,212.33,0.66]
[1756908367126,11.70220901,212.35,212.29,17.07274648]
[1756908367430,11.78180935,212.36,212.29,17.07274648]
[1756908367605,11.78180935,212.36,212.3,11.70220901]
[1756908367918,11.78180935,212.36,212.3,12.36220901]
[1756908368123,0.07960034,212.36,212.31,0.66]
[1756908368330,0.07960034,212.36,212.34,11.70220901]
[1756908368489,0.07960034,212.36,212.35,0.66]
[1756908369598,11.70220901,212.4,212.33,4.70965007]
[1756908369912,11.70220901,212.38,212.32,5.36984968]
[1756908370112,11.70220901,212.37,212.31,11.70220901]
[1756908370320,11.70220901,212.35,212.3,5.37016233]
[1756908371231,11.70220901,212.37,212.31,12.36220901]
[1756908371723,0.67,212.39,212.31,16.41214597]
[1756908371905,11.70220901,212.37,212.31,17.13214597]
[1756908372112,26.0,212.38,212.31,17.13214597]
[1756908372416,11.70220901,212.37,212.31,17.13214597]
[1756908372624,11.70220901,212.4,212.34,11.70220901]
[1756908372830,11.70220901,212.42,212.36,11.70220901]
[1756908373017,0.06,212.44,212.37,11.70220901]
[1756908373198,11.70220901,212.43,212.36,11.70220901]
[1756908373392,0.76,212.44,212.36,12.42220901]
[1756908373703,11.70220901,212.38,212.32,17.1319208]
[1756908373907,4.70819559,212.4,212.32,17.1319208]
[1756908373908,11.70220901,212.37,212.32,5.42971179]
[1756908374137,11.70220901,212.4,212.33,12.42220901]
[1756908374527,11.70220901,212.39,212.33,12.42220901]
[1756908374905,11.70220901,212.4,212.34,12.42220901]
[1756908375118,11.70220901,212.42,212.36,11.70220901]
[1756908375318,26.0,212.43,212.36,11.70220901]
[1756908375535,0.06,212.44,212.39,11.70220901]
[1756908375704,0.06,212.44,212.41,4.70787627]
[1756908375909,0.06,212.44,212.41,16.41008528]
[1756908376130,0.06,212.44,212.42,0.72]
[1756908377225,0.06,212.44,212.34,13.59559401]
[1756908377226,11.76220901,212.44,212.34,13.59559401]
[1756908377441,11.70220901,212.43,212.37,11.70220901]
[1756908377608,11.76220901,212.44,212.38,12.42220901]
[1756908377809,11.76220901,212.44,212.39,4.7083196]
[1756908378004,0.06,212.44,212.4,0.72]
[1756908378208,0.06,212.44,212.41,12.42220901]
[1756908378528,0.06,212.44,212.41,0.72]
[1756908379309,0.13960034,212.44,212.41,0.72]
[1756908379841,0.13960034,212.44,212.41,5.427745]
[1756908380143,0.13960034,212.44,212.41,0.72]
[1756908380323,0.13960034,212.44,212.42,0.72]
[1756908380510,0.13960034,212.44,212.42,12.42220901]
[1756908380834,0.13960034,212.44,212.41,4.70787249]
[1756908380835,0.13960034,212.44,212.43,0.72]
[1756908381718,0.13960034,212.44,212.4,0.72]
[1756908381919,0.13960034,212.44,212.41,4.70787627]
[1756908382120,0.13960034,212.44,212.41,0.72]
[1756908382307,11.70220901,212.42,212.32,1.88674795]
[1756908382507,4.84691832,212.44,212.35,0.72]
[1756908382721,11.70220901,212.4,212.35,0.72]
[1756908382936,0.13960034,212.44,212.37,11.70220901]
[1756908383104,0.13960034,212.44,212.36,0.72]
[1756908383105,0.13960034,212.44,212.39,11.70220901]
[1756908383309,0.13960034,212.44,212.4,0.72]
[1756908383727,0.13960034,212.44,212.39,11.70220901]
[1756908383728,12.54180935,212.44,212.38,11.70220901]
[1756908383928,11.70220901,212.43,212.37,17.13094265]
[1756908384131,0.13960034,212.44,212.27,80.01432314]
[1756908384132,26.0,212.41,212.31,0.72]
[1756908384316,11.70220901,212.36,212.31,0.72]
[1756908384624,11.70220901,212.38,212.31,0.72]
[1756908384829,0.7,212.42,212.31,0.72]
[1756908385026,11.70220901,212.39,212.33,11.70220901]
[1756908385213,11.70220901,212.4,212.34,11.70220901]
[1756908385408,11.70220901,212.37,212.3,39.08]
[1756908385632,11.70220901,212.36,212.3,76.78220901]
[1756908385932,0.7,212.39,212.32,4.70987189]
[1756908385933,11.70220901,212.38,212.32,4.70987189]
[1756908386230,11.70220901,212.39,212.33,12.42220901]
[1756908386431,11.70220901,212.34,212.27,4.74078663]
[1756908386614,11.70220901,212.31,212.27,4.74078663]
[1756908386808,11.70220901,212.31,212.27,0.75]
[1756908387228,0.7,212.3,212.27,0.03]
[1756908387626,11.70220901,212.28,212.27,0.03]
[1756908387827,11.70220901,212.31,212.27,0.75]
[1756908388029,11.70220901,212.3,212.27,0.03]
[1756908388222,11.70220901,212.31,212.27,0.75]
[1756908388722,31.40840779,212.39,212.29,11.70220901]
[1756908388924,11.70220901,212.35,212.29,11.70220901]
[1756908389163,26.7,212.39,212.3,12.42220901]
[1756908389440,11.70220901,212.36,212.3,12.42220901]
[1756908389830,11.70220901,212.37,212.32,4.70987189]
[1756908390025,11.70220901,212.38,212.33,0.72]
[1756908390228,26.7,212.4,212.32,4.70987189]
[1756908390443,12.40220901,212.4,212.33,11.70220901]
[1756908390832,0.7,212.43,212.34,11.70220901]
[1756908391026,11.70220901,212.42,212.35,11.70220901]
[1756908391532,11.70220901,212.38,212.32,16.4120809]
[1756908391737,11.70220901,212.38,212.32,55.4920809]
[1756908392038,11.70220901,212.39,212.32,55.4920809]
[1756908392221,0.7,212.41,212.34,11.70220901]
[1756908392622,0.83960034,212.44,212.34,11.70220901]
[1756908392831,26.83960034,212.44,212.36,11.70220901]
[1756908393031,11.70220901,212.43,212.37,11.70220901]
[1756908393336,0.83960034,212.44,212.37,12.42220901]
[1756908393544,11.84180935,212.44,212.37,12.42220901]
[1756908393925,0.13960034,212.44,212.39,4.7083196]
[1756908394127,0.13960034,212.44,212.39,5.4283196]
[1756908394640,0.06,212.44,212.43,11.70220901]
[1756908394839,0.06,212.44,212.43,25.29780302]
[1756908395031,0.06,212.44,212.43,26.01780302]
[1756908395346,0.06,212.45,212.43,40.31559401]
[1756908395555,0.06,212.45,212.44,51.48220901]
[1756908395727,0.06,212.47,212.46,26.0]
[1756908395927,0.06,212.47,212.46,42.40897734]
[1756908396149,0.06,212.47,212.46,43.12897734]
[1756908396933,0.06,212.47,212.46,31.42676833]
[1756908397155,0.06,212.47,212.46,43.12897734]
[1756908397348,0.06,212.47,212.46,56.72457135]
[1756908399427,0.06,212.47,212.46,81.44897734]
[1756908399627,0.06,212.47,212.46,26.0]
[1756908400041,0.06,212.47,212.46,39.04]
[1756908400653,0.06,212.47,212.41,0.72]
[1756908400828,0.06,212.47,212.43,11.70220901]
[1756908401028,0.06,212.47,212.44,39.04]
[1756908401627,0.06,212.47,212.43,7.90543054]
[1756908401837,7.90543054,212.45,212.42,39.04]
[1756908402040,7.90543054,212.43,212.32,0.71]
[1756908402240,7.90543054,212.43,212.34,7.90543054]
[1756908402241,7.90543054,212.4,212.34,7.90543054]
[1756908402453,7.90543054,212.41,212.34,12.61473296]
[1756908402666,7.90543054,212.39,212.29,7.96543054]
[1756908402838,26.69,212.38,212.28,7.90543054]
[1756908403038,26.69,212.38,212.27,39.78]
[1756908403039,7.90543054,212.33,212.27,39.07]
[1756908403236,7.90543054,212.33,212.27,46.97543054]
[1756908403562,8.59543054,212.34,212.28,7.90543054]
[1756908404247,7.90543054,212.32,212.28,4.71073663]
[1756908404434,7.90543054,212.32,212.27,39.07]
[1756908404642,8.59543054,212.31,212.27,0.03]
[1756908404836,0.69,212.31,212.27,4.74084972]
[1756908405560,7.90543054,212.33,212.27,12.64628026]
[1756908406147,7.90543054,212.32,212.27,4.74084972]
[1756908406636,8.59543054,212.32,212.27,4.74084972]
[1756908406836,0.69,212.32,212.27,4.74084972]
[1756908407071,8.59543054,212.32,212.27,4.74084972]
[1756908407439,7.90543054,212.3,212.27,0.03]
[1756908407939,7.90543054,212.28,212.27,0.03]
[1756908408467,0.69,212.28,212.27,0.03]
[1756908409564,8.59543054,212.28,212.27,0.03]
[1756908409861,13.30618991,212.28,212.27,0.03]
[1756908410049,15.19507618,212.28,212.27,0.03]
[1756908410238,15.19507618,212.28,212.24,0.03]
[1756908410239,30.7114252,212.25,212.24,0.03]
[1756908410438,38.61685574,212.25,212.24,0.03]
[1756908410633,60.80788029,212.25,212.24,0.03]
[1756908410854,52.90244975,212.25,212.24,0.03]
[1756908411033,60.80788029,212.25,212.24,0.03]
[1756908411772,60.80788029,212.25,212.22,0.03]
[1756908411945,21.50102455,212.23,212.22,0.03]
[1756908412138,13.59559401,212.19,212.13,0.1]
[1756908412342,26.0,212.2,212.13,0.1]
[1756908412343,7.90543054,212.14,212.13,0.1]
[1756908412959,8.59543054,212.14,212.13,0.1]
[1756908413768,39.59559401,212.11,212.1,0.1]
[1756908413942,47.50102455,212.11,212.1,0.1]
[1756908414166,4.71543471,212.17,212.1,0.1]
[1756908414464,33.90543054,212.14,212.1,0.1]
[1756908414655,7.90543054,212.13,212.1,0.1]
[1756908414863,7.90543054,212.12,212.1,0.1]
[1756908415159,7.90543054,212.11,212.1,0.1]
[1756908415535,33.90543054,212.14,212.1,0.1]
[1756908415741,26.69,212.16,212.1,4.81475277]
[1756908415936,26.69,212.16,212.1,8.00543054]
[1756908416235,33.90543054,212.15,212.1,4.81473743]
[1756908416635,33.90543054,212.15,212.13,0.03]
[1756908417042,26.0,212.17,212.13,0.03]
[1756908417260,7.90543054,212.15,212.13,0.03]
[1756908418239,8.61543054,212.19,212.13,0.03]
[1756908418441,7.90543054,212.17,212.13,0.03]
[1756908418763,7.90543054,212.19,212.13,0.03]
[1756908418968,7.90543054,212.18,212.13,0.03]
[1756908419269,7.90543054,212.16,212.13,0.03]
[1756908419460,0.69,212.17,212.13,0.03]
[1756908419863,7.90543054,212.16,212.13,0.03]
[1756908420345,7.90543054,212.18,212.14,0.71]
[1756908420550,33.90543054,212.19,212.14,5.42386345]
[1756908420853,14.28559401,212.26,212.17,7.90543054]
[1756908421064,0.69,212.26,212.18,7.90543054]
[1756908421274,62.8440724,212.29,212.22,7.90543054]
[1756908421484,7.90543054,212.26,212.19,0.71]
[1756908421769,7.90543054,212.23,212.16,7.90543054]
[1756908421979,7.90543054,212.23,212.17,7.90543054]
[1756908422264,7.90543054,212.25,212.19,7.90543054]
[1756908422464,26.0,212.28,212.21,7.90543054]
[1756908422465,7.90543054,212.27,212.21,7.90543054]
[1756908422664,7.90543054,212.26,212.2,7.90543054]
[1756908422865,7.90543054,212.27,212.21,7.90543054]
[1756908423184,23.8040724,212.29,212.22,0.71]
[1756908423476,23.8040724,212.29,212.24,7.90543054]
[1756908423784,7.90543054,212.3,212.24,7.90543054]
[1756908423953,7.90543054,212.33,212.22,26.0]
[1756908424272,0.69,212.37,212.3,7.90543054]
[1756908424580,7.90543054,212.33,212.27,4.7107839]
[1756908424748,7.90543054,212.33,212.27,12.61621444]
[1756908424946,7.90543054,212.32,212.27,4.7107839]
[1756908425560,8.59543054,212.32,212.27,4.7107839]
[1756908425949,0.69,212.32,212.27,4.7107839]
[1756908426169,8.59543054,212.32,212.26,13.32661693]
[1756908426760,7.90543054,212.31,212.25,12.61683501]
[1756908427481,7.90543054,212.32,212.26,7.90543054]
[1756908427653,7.90543054,212.3,212.24,12.61687124]
[1756908427852,0.07960034,212.33,212.26,12.61663378]
[1756908428071,7.90543054,212.32,212.26,12.61663378]
[1756908428250,0.07960034,212.33,212.26,12.61663378]
[1756908428251,7.98503088,212.33,212.27,7.90543054]
[1756908428453,7.90543054,212.31,212.25,13.32683494]
[1756908428873,7.90543054,212.3,212.23,4.71167863]
[1756908429084,7.90543054,212.3,212.24,7.90543054]
[1756908429265,7.90543054,212.29,212.23,12.61710917]
[1756908429462,7.90543054,212.28,212.22,0.71]
[1756908429970,7.90543054,212.27,212.22,4.71192413]
[1756908430269,7.90543054,212.26,212.22,4.71192413]
[1756908430454,8.59543054,212.27,212.22,4.71192413]
[1756908431390,26.0,212.3,212.23,0.71]
[1756908431587,7.90543054,212.29,212.23,8.61543054]
[1756908432074,7.90543054,212.29,212.23,5.42184223]
[1756908432280,7.90543054,212.29,212.23,13.32727277]
[1756908432451,7.90543054,212.31,212.25,7.90543054]
[1756908432652,0.73960034,212.33,212.25,8.57543054]
[1756908432867,7.90543054,212.3,212.23,4.71184223]
[1756908433069,0.66,212.32,212.23,12.61727277]
[1756908433070,7.90543054,212.29,212.23,12.61727277]
[1756908433272,7.90543054,212.31,212.25,7.90543054]
[1756908433474,7.90543054,212.29,212.23,12.61727277]
[1756908433659,7.90543054,212.26,212.2,79.7]
[1756908433862,5.37103194,212.27,212.19,4.71275743]
[1756908434058,0.66,212.27,212.19,4.71275743]
[1756908434253,7.90543054,212.22,212.17,4.71303969]
[1756908434458,7.90543054,212.2,212.15,4.71346507]
[1756908434677,7.90543054,212.2,212.15,5.38346507]
[1756908435359,7.90543054,212.21,212.16,0.67]
[1756908435554,7.90543054,212.22,212.17,0.67]
[1756908435875,7.90543054,212.24,212.19,4.71275743]
[1756908436073,0.72,212.29,212.2,0.67]
[1756908436375,7.90543054,212.24,212.19,4.71275743]
[1756908436557,7.90543054,212.23,212.19,4.71275743]
[1756908436954,7.90543054,212.23,212.17,4.71301823]
[1756908437171,7.90543054,212.2,212.15,5.38345393]
[1756908438374,7.90543054,212.19,212.15,4.71345393]
[1756908438688,8.56543054,212.18,212.13,4.74407558]
[1756908439481,7.90543054,212.19,212.14,0.67]
[1756908439858,14.25559401,212.24,212.16,7.90543054]
[1756908440075,7.90543054,212.22,212.17,4.71320167]
[1756908440277,7.90543054,212.21,212.17,4.71320167]
[1756908440572,7.90543054,212.2,212.14,7.90543054]
[1756908440759,18.30727102,212.24,212.14,7.90543054]
[1756908440760,14.25559401,212.24,212.15,4.71360524]
[1756908440958,7.90543054,212.2,212.15,4.71360524]
[1756908441274,0.66,212.19,212.13,7.93543054]
[1756908441483,7.90543054,212.18,212.13,0.03]